bitfinex-derivatives/quotes_BTCF0:USTF0_20250902
["timestamp","ask_amount","ask_price","bid_price","bid_amount"]
[1756824373739,0.0191664,111580.0,111570.0,0.52716]
[1756824374345,0.01,111580.0,111570.0,0.52716]
[1756824375745,0.01887256,111580.0,111570.0,0.52716]
[1756824376435,0.12368256,111580.0,111570.0,0.52716]
[1756824376635,0.05880256,111580.0,111570.0,0.52716]
[1756824376840,0.46368256,111580.0,111570.0,0.52716]
[1756824377745,0.43873256,111580.0,111570.0,0.52716]
[1756824378740,0.46368256,111580.0,111570.0,0.52716]
[1756824378938,0.39880256,111580.0,111570.0,0.52716]
[1756824379950,0.35,111580.0,111570.0,0.52716]
[1756824380140,0.38993,111580.0,111570.0,0.52716]
[1756824380334,0.35,111580.0,111570.0,1.60976512]
[1756824380538,0.02,111580.0,111570.0,1.53938512]
[1756824381042,0.02,111580.0,111570.0,1.69938602]
[1756824381448,0.01820471,111600.0,111590.0,0.09298]
[1756824381650,0.02820471,111600.0,111590.0,2.57516512]
[1756824381840,0.02820471,111600.0,111590.0,2.82516512]
[1756824382147,0.01,111600.0,111590.0,2.84505602]
[1756824382548,0.01,111600.0,111590.0,2.93466092]
[1756824382743,0.01837062,111620.0,111600.0,0.02907]
[1756824382944,0.05837062,111620.0,111610.0,2.19512512]
[1756824383144,0.05837062,111620.0,111610.0,2.50512512]
[1756824383347,0.04,111620.0,111610.0,2.75508512]
[1756824383642,0.04,111620.0,111610.0,0.90504469]
[1756824383946,0.04,111620.0,111610.0,1.76256469]
[1756824384139,0.04,111620.0,111610.0,1.76252469]
[1756824384344,0.04,111620.0,111610.0,0.90504469]
[1756824384541,0.08093,111620.0,111610.0,0.90504469]
[1756824384740,0.14581,111620.0,111610.0,0.90504469]
[1756824384950,0.001,111620.0,111610.0,0.90504469]
[1756824385150,0.01834983,111630.0,111620.0,0.16336]
[1756824385350,0.31827983,111630.0,111620.0,0.52416]
[1756824385545,0.27834983,111630.0,111620.0,0.52416]
[1756824385749,0.27834983,111630.0,111620.0,0.97676512]
[1756824386049,0.27834983,111630.0,111620.0,0.52416]
[1756824386344,0.30329983,111630.0,111620.0,0.80416]
[1756824386549,0.63315983,111630.0,111620.0,1.66156]
[1756824387545,0.52834983,111630.0,111620.0,0.80416]
[1756824387744,0.51,111630.0,111620.0,0.80416]
[1756824388143,0.26,111630.0,111620.0,1.25676512]
[1756824388344,0.261,111630.0,111620.0,1.25676512]
[1756824388545,0.261,111630.0,111620.0,1.66148]
[1756824389747,0.261,111630.0,111620.0,2.36408512]
[1756824390549,0.261,111630.0,111620.0,1.05416]
[1756824390753,0.261,111630.0,111620.0,1.66136]
[1756824391443,0.261,111630.0,111620.0,2.11396512]
[1756824391648,0.261,111630.0,111620.0,2.11392512]
[1756824392249,0.261,111630.0,111620.0,1.25676512]
[1756824392451,0.26,111630.0,111620.0,2.11392512]
[1756824393251,0.26,111630.0,111620.0,1.25676512]
[1756824393448,0.26,111630.0,111620.0,1.66128]
[1756824394055,0.261,111630.0,111620.0,1.66128]
[1756824396564,0.261,111630.0,111620.0,2.11388512]
[1756824397259,0.261,111630.0,111620.0,1.25676512]
[1756824397460,0.261,111630.0,111620.0,1.66112]
[1756824397755,0.261,111630.0,111620.0,0.52416]
[1756824397960,0.08335,111630.0,111620.0,1.38112]
[1756824398361,0.15487,111630.0,111620.0,1.38108]
[1756824398563,0.09676,111630.0,111620.0,0.52416]
[1756824398762,0.15487,111630.0,111620.0,1.38108]
[1756824399071,0.15487,111630.0,111620.0,0.52416]
[1756824399367,0.40487,111630.0,111620.0,0.52416]
[1756824399557,0.40487,111630.0,111620.0,0.3608]
[1756824399761,0.09387,111620.0,111610.0,0.47411469]
[1756824399963,0.54647512,111620.0,111610.0,0.47411469]
[1756824400164,0.84449985,111620.0,111600.0,0.46272]
[1756824400363,0.09387,111610.0,111600.0,0.55595]
[1756824400566,0.43228868,111620.0,111610.0,0.07285]
[1756824400871,0.18228868,111620.0,111610.0,0.16608]
[1756824401073,0.43228868,111620.0,111610.0,0.74403]
[1756824401269,0.43228868,111620.0,111610.0,0.69811]
[1756824401566,0.8848938,111620.0,111610.0,0.29]
[1756824401771,0.8848938,111620.0,111610.0,0.45608]
[1756824401972,0.43228868,111620.0,111610.0,0.45608]
[1756824402177,0.43228868,111620.0,111610.0,0.38323]
[1756824402575,0.43528868,111620.0,111610.0,0.38323]
[1756824403076,0.18528868,111620.0,111610.0,0.81688]
[1756824403277,0.09141868,111620.0,111610.0,0.81688]
[1756824403477,0.09241868,111620.0,111610.0,0.81688]
[1756824404078,0.12817868,111620.0,111610.0,0.81688]
[1756824404372,0.09241868,111620.0,111610.0,0.81688]
[1756824404678,0.18628868,111620.0,111610.0,0.45608]
[1756824404877,1.2468938,111620.0,111600.0,0.38987]
[1756824405074,0.02235,111610.0,111600.0,0.19515]
[1756824405278,0.09387,111610.0,111600.0,0.55595]
[1756824405975,0.05811,111610.0,111600.0,0.55595]
[1756824406171,0.09387,111610.0,111600.0,0.19515]
[1756824406378,1.21727512,111610.0,111600.0,0.16608]
[1756824406674,0.09387,111600.0,111590.0,0.0672009]
[1756824406874,0.80467,111600.0,111590.0,0.0672009]
[1756824407179,0.80467,111600.0,111590.0,0.1131209]
[1756824407680,0.80467,111600.0,111590.0,0.1859709]
[1756824407874,0.80567,111600.0,111590.0,0.1859709]
[1756824409374,0.81471793,111600.0,111590.0,0.1859709]
[1756824409776,0.07152,111580.0,111570.0,0.52688]
[1756824409978,0.07152,111580.0,111570.0,0.80688]
[1756824409979,0.11206364,111580.0,111570.0,0.80688]
[1756824410179,0.01819364,111580.0,111570.0,0.80688]
[1756824410983,0.01819364,111580.0,111570.0,0.80888]
[1756824411684,0.11206364,111580.0,111570.0,0.52888]
[1756824412385,0.11206364,111580.0,111570.0,0.52988]
[1756824412586,0.05395364,111580.0,111570.0,0.52988]
[1756824412972,0.01819364,111580.0,111570.0,0.52988]
[1756824413885,0.01819364,111580.0,111570.0,0.78988]
[1756824414482,0.01819364,111580.0,111570.0,0.79436]
[1756824415279,0.11206364,111580.0,111570.0,0.53436]
[1756824415479,0.05395364,111580.0,111570.0,0.53436]
[1756824415880,0.01819364,111580.0,111570.0,0.53436]
[1756824416586,0.01819364,111580.0,111570.0,0.79436]
[1756824416982,0.01819364,111580.0,111570.0,1.49696512]
[1756824417874,0.01819364,111580.0,111570.0,1.58658592]
[1756824418074,0.01819364,111580.0,111570.0,1.49696512]
[1756824418979,0.01819364,111580.0,111570.0,2.44382582]
[1756824419285,0.01819364,111580.0,111570.0,2.10420512]
[1756824419787,0.01819364,111580.0,111570.0,1.6516]
[1756824419983,0.01819364,111580.0,111570.0,2.10420512]
[1756824420486,0.01819364,111580.0,111570.0,1.9016]
[1756824420879,0.01819364,111580.0,111570.0,2.35420512]
[1756824422491,0.01819364,111580.0,111570.0,2.44382592]
[1756824424586,0.01830097,111600.0,111590.0,0.09323]
[1756824424783,0.03830097,111600.0,111590.0,2.57752512]
[1756824425085,0.03830097,111600.0,111590.0,1.26768]
[1756824425287,0.03830097,111600.0,111590.0,2.12492]
[1756824426188,0.03830097,111600.0,111590.0,1.26768]
[1756824426486,1.09562609,111600.0,111580.0,0.4308]
[1756824426683,0.0831,111590.0,111580.0,0.52127]
[1756824426883,0.07332,111590.0,111580.0,0.52127]
[1756824427084,0.01,111590.0,111580.0,0.52127]
[1756824427689,0.01,111590.0,111580.0,1.25387512]
[1756824427884,0.01,111590.0,111580.0,1.50387512]
[1756824428086,0.01,111590.0,111580.0,1.05127]
[1756824428382,0.01,111590.0,111580.0,1.50387512]
[1756824428982,0.01,111590.0,111580.0,1.59348792]
[1756824429183,0.01,111590.0,111580.0,2.45068792]
[1756824430087,0.12007868,111620.0,111600.0,0.14449]
[1756824430281,0.50173868,111620.0,111610.0,0.52127]
[1756824430592,0.43841868,111620.0,111610.0,0.80127]
[1756824430985,0.61804395,111620.0,111610.0,0.80127]
[1756824431180,0.30804395,111620.0,111610.0,0.80127]
[1756824431394,0.39214395,111620.0,111610.0,0.80127]
[1756824432084,0.39214395,111620.0,111610.0,0.80574]
[1756824432389,0.30904395,111620.0,111610.0,0.80574]
[1756824432588,0.05904395,111620.0,111610.0,0.80574]
[1756824432789,0.06004395,111620.0,111610.0,0.80574]
[1756824433291,0.06004395,111620.0,111610.0,1.25834512]
[1756824434484,0.05904395,111620.0,111610.0,1.25834512]
[1756824435096,0.06004395,111620.0,111610.0,1.25834512]
[1756824435696,0.05904395,111620.0,111610.0,1.26194683]
[1756824462027,1.20336395,111620.0,111610.0,1.26194683]
[1756825651921,0.1748074,111130.0,111120.0,1.70618]
[1756825652111,0.0899774,111130.0,111120.0,1.70618]
[1756825652515,0.0899774,111130.0,111120.0,2.19335754]
[1756825652812,0.1748074,111130.0,111120.0,0.44854]
[1756825653117,0.1148074,111130.0,111120.0,1.70678]
[1756825653622,0.0899774,111130.0,111120.0,1.70678]
[1756825653821,0.0899774,111130.0,111120.0,2.41395754]
[1756825654022,0.10803192,111140.0,111130.0,0.1777174]
[1756825654217,0.10803192,111140.0,111130.0,1.31569494]
[1756825654624,0.10803192,111140.0,111130.0,1.22571754]
[1756825654918,0.10803192,111140.0,111130.0,1.6767]
[1756825655314,0.10803192,111140.0,111130.0,2.38387754]
[1756825655623,0.10803192,111140.0,111130.0,1.6767]
[1756825656121,0.10803192,111140.0,111130.0,2.13387754]
[1756825656318,0.10803192,111140.0,111130.0,2.38387754]
[1756825656524,0.10803192,111140.0,111130.0,2.39219325]
[1756825657816,0.10803192,111140.0,111130.0,2.14563325]
[1756825658318,0.0899533,111160.0,111140.0,0.04992]
[1756825658520,0.1753133,111160.0,111150.0,1.63188]
[1756825658712,0.70414976,111160.0,111150.0,0.74176974]
[1756825658914,0.1373695,111140.0,111130.0,0.380977]
[1756825659217,0.0899776,111130.0,111120.0,0.81137]
[1756825659410,0.1753376,111130.0,111120.0,0.10537]
[1756825659609,0.88474413,111130.0,111120.0,0.94733]
[1756825659816,0.4253376,111130.0,111120.0,0.97174]
[1756825660014,0.4253376,111130.0,111120.0,0.93637]
[1756825660214,0.4253376,111130.0,111120.0,0.93585]
[1756825660616,0.1753456,111120.0,111110.0,0.46577269]
[1756825660811,0.1373937,111110.0,111100.0,0.41072]
[1756825661026,0.1753537,111110.0,111100.0,1.71729]
[1756825661614,0.1753537,111110.0,111100.0,1.35729]
[1756825661831,0.1753537,111110.0,111100.0,1.47729]
[1756825662025,0.1753537,111110.0,111100.0,0.56609]
[1756825662221,0.1753537,111110.0,111100.0,1.47645]
[1756825662432,0.1753537,111110.0,111100.0,1.68645]
[1756825662627,0.1753537,111110.0,111100.0,1.48605]
[1756825662921,0.1753537,111110.0,111100.0,1.71605]
[1756825663223,0.4253537,111110.0,111100.0,1.50605]
[1756825663625,0.4253537,111110.0,111100.0,1.73605]
[1756825663626,0.3399937,111110.0,111100.0,1.73605]
[1756825663929,0.0899937,111110.0,111100.0,1.69605]
[1756825664126,0.0899937,111110.0,111100.0,1.35605]
[1756825664322,0.1753537,111110.0,111100.0,1.48585]
[1756825664517,0.1374019,111100.0,111090.0,0.41072]
[1756825664820,0.0900019,111100.0,111090.0,1.66549]
[1756825665818,0.0899856,111120.0,111090.0,2.33952653]
[1756825666029,0.0899856,111120.0,111110.0,0.80689]
[1756825666230,0.0899856,111120.0,111110.0,2.48533653]
[1756825666725,0.0899856,111120.0,111110.0,1.11689]
[1756825666932,0.1753456,111120.0,111110.0,0.44609]
[1756825667130,0.88475213,111120.0,111110.0,0.41072]
[1756825667425,0.88475213,111120.0,111110.0,0.02441]
[1756825667633,0.08536,111110.0,111100.0,0.44609]
[1756825667836,0.08536,111110.0,111100.0,1.70421]
[1756825668128,0.0899856,111120.0,111110.0,0.08529]
[1756825668335,0.1753456,111120.0,111110.0,0.3608]
[1756825668526,0.63475213,111120.0,111110.0,1.26868]
[1756825668728,0.63475213,111120.0,111100.0,1.35385]
[1756825668729,0.03796,111110.0,111100.0,1.35385]
[1756825669030,0.03796,111110.0,111100.0,1.44385]
[1756825669227,0.03796,111110.0,111100.0,0.53609]
[1756825669228,0.33536,111110.0,111100.0,0.53609]
[1756825669440,0.79476653,111110.0,111100.0,1.35792]
[1756825669640,0.33536,111110.0,111100.0,1.35792]
[1756825669845,0.33536,111110.0,111100.0,1.4177]
[1756825670540,0.33536,111110.0,111100.0,1.4222]
[1756825670741,0.79476653,111110.0,111100.0,1.4222]
[1756825671248,1.15556653,111110.0,111100.0,0.17979]
[1756825671453,1.52556653,111110.0,111100.0,0.0945]
[1756825671638,1.52556653,111110.0,111100.0,0.0045]
[1756825671839,1.15556653,111110.0,111100.0,0.08979]
[1756825672040,0.91019213,111120.0,111100.0,0.08979]
[1756825672250,0.91019213,111120.0,111110.0,0.08529]
[1756825672251,0.1139056,111120.0,111110.0,0.08529]
[1756825672443,0.1139056,111120.0,111110.0,0.99285]
[1756825672754,0.1373856,111120.0,111110.0,0.99285]
[1756825673050,0.99555213,111120.0,111110.0,0.08529]
[1756825673343,0.99555213,111120.0,111110.0,0.04992]
[1756825673751,0.99555213,111120.0,111110.0,0.02441]
[1756825673952,1.20759213,111120.0,111100.0,0.03987]
[1756825674253,0.54476653,111110.0,111100.0,0.0045]
[1756825675247,0.90556653,111110.0,111100.0,0.0045]
[1756825675640,0.90556653,111110.0,111100.0,0.02891]
[1756825675840,0.4887456,111120.0,111110.0,0.03537]
[1756825676051,0.0899856,111120.0,111110.0,0.08529]
[1756825676350,0.1139056,111120.0,111110.0,0.08529]
[1756825676551,0.1373856,111120.0,111110.0,0.08529]
[1756825676752,0.1753456,111120.0,111110.0,0.08529]
[1756825677344,0.63475213,111120.0,111110.0,0.08529]
[1756825677544,0.1139056,111120.0,111110.0,0.44609]
[1756825677746,0.1753456,111120.0,111110.0,0.44609]
[1756825677945,0.63475213,111120.0,111110.0,0.44609]
[1756825678162,0.1753456,111120.0,111110.0,0.44609]
[1756825679148,0.1753456,111120.0,111110.0,1.35033]
[1756825679348,0.0899856,111120.0,111110.0,2.05973653]
[1756825679553,0.0899856,111120.0,111110.0,2.12973653]
[1756825679753,0.0899856,111120.0,111110.0,1.35033]
[1756825680252,0.0899856,111120.0,111110.0,2.43973653]
[1756825680447,0.0899856,111120.0,111110.0,2.51990202]
[1756825680653,0.01854167,111150.0,111110.0,2.60658882]
[1756825680854,0.01854167,111150.0,111140.0,0.08529]
[1756825681049,0.09019427,111160.0,111150.0,0.08529]
[1756825681655,0.14617979,111160.0,111150.0,0.08529]
[1756825681955,0.18413979,111160.0,111150.0,0.08529]
[1756825682151,0.13759427,111160.0,111150.0,0.44609]
[1756825682347,0.17555427,111160.0,111150.0,0.42058]
[1756825682552,0.17555427,111160.0,111150.0,0.98841]
[1756825683562,0.17555427,111160.0,111150.0,0.08529]
[1756825684055,0.06188,111150.0,111140.0,0.1659291]
[1756825684259,0.08536,111140.0,111130.0,1.0676891]
[1756825684556,0.03796,111130.0,111120.0,0.22824079]
[1756825684858,0.90556653,111130.0,111120.0,0.05978]
[1756825685061,0.90556653,111130.0,111120.0,0.06427]
[1756825685263,0.90556653,111130.0,111120.0,0.0289]
[1756825685656,0.08536,111130.0,111120.0,0.45058]
[1756825685852,0.3608,111140.0,111120.0,1.31721]
[1756825686057,0.08536,111150.0,111140.0,0.0871]
[1756825686259,0.09536,111150.0,111140.0,0.0871]
[1756825686463,0.08269,111140.0,111120.0,0.40247]
[1756825686662,0.90289653,111140.0,111130.0,0.08599]
[1756825686855,0.03599,111130.0,111120.0,1.30443]
[1756825687057,0.4075,111140.0,111130.0,0.0245]
[1756825687262,0.90289653,111140.0,111130.0,0.08599]
[1756825687563,0.90289653,111140.0,111130.0,0.0245]
[1756825687759,0.86690653,111140.0,111120.0,0.36529]
[1756825687970,0.08269,111130.0,111120.0,1.35304]
[1756825688269,0.08269,111130.0,111120.0,0.45128]
[1756825688465,0.54209653,111130.0,111120.0,0.1711191]
[1756825688767,0.90289653,111130.0,111120.0,0.1339391]
[1756825688960,0.90289653,111130.0,111120.0,0.00449]
[1756825689362,0.90289653,111130.0,111120.0,0.0533]
[1756825689768,0.90289653,111130.0,111120.0,0.02899]
[1756825690166,0.90289653,111130.0,111120.0,0.00449]
[1756825690355,0.08269,111130.0,111120.0,0.00449]
[1756825690560,0.92993767,111140.0,111130.0,0.08599]
[1756825690761,0.47053114,111140.0,111130.0,0.08599]
[1756825691469,0.47053114,111140.0,111130.0,0.04881]
[1756825691670,0.47053114,111140.0,111130.0,0.0245]
[1756825691871,0.47053114,111140.0,111130.0,0.08599]
[1756825692370,0.08269,111130.0,111120.0,0.45128]
[1756825693161,0.08269,111130.0,111120.0,0.0851291]
[1756825693363,0.54209653,111130.0,111120.0,0.0851291]
[1756825693564,0.08269,111130.0,111120.0,0.0851291]
[1756825693767,0.08269,111130.0,111120.0,0.1711191]
[1756825694165,0.08269,111130.0,111120.0,0.0851291]
[1756825694166,0.44349,111130.0,111120.0,0.0851291]
[1756825694360,0.90289653,111130.0,111120.0,0.0851291]
[1756825694567,1.47289653,111130.0,111120.0,0.00449]
[1756825694766,1.15289653,111130.0,111120.0,0.00449]
[1756825695266,0.69349,111130.0,111120.0,0.00449]
[1756825695669,1.15289653,111130.0,111120.0,0.00449]
[1756825695869,1.49289653,111130.0,111120.0,0.00449]
[1756825696377,0.08269,111110.0,111100.0,0.3608]
[1756825696576,0.08269,111110.0,111100.0,0.44679]
[1756825696871,0.08269,111110.0,111100.0,0.5274291]
[1756825697577,0.08269,111110.0,111100.0,0.52770917]
[1756825698574,0.0467,111110.0,111100.0,0.52770917]
[1756825698978,0.02333,111110.0,111100.0,1.12770917]
[1756825699275,0.10107958,111120.0,111110.0,0.08599]
[1756825699478,0.10107958,111120.0,111110.0,0.0245]
[1756825699674,0.10107958,111120.0,111110.0,0.08599]
[1756825699870,0.06508958,111120.0,111110.0,0.08599]
[1756825700070,0.10107958,111120.0,111110.0,0.16690917]
[1756825700472,0.06508958,111120.0,111110.0,0.16690917]
[1756825700672,0.10107958,111120.0,111110.0,0.16690917]
[1756825700876,0.06508958,111120.0,111110.0,0.16690917]
[1756825701276,0.06508958,111120.0,111110.0,0.52770917]
[1756825701769,0.01838958,111120.0,111110.0,1.5871157]
[1756825701978,0.01838958,111120.0,111110.0,1.04679]
[1756825702476,0.01838958,111120.0,111110.0,1.15902169]
[1756825702672,0.01838958,111120.0,111110.0,0.80902169]
[1756825702873,0.10107958,111120.0,111110.0,0.49753169]
[1756825703082,0.10107958,111120.0,111110.0,0.60272796]
[1756825703274,0.10107958,111120.0,111110.0,0.83767627]
[1756825703781,0.10107958,111120.0,111110.0,0.52767627]
[1756825705077,0.90289653,111130.0,111120.0,0.08599]
[1756825705277,0.91289653,111130.0,111120.0,0.0245]
[1756825707186,0.45349,111130.0,111120.0,0.0245]
[1756825707578,0.91289653,111130.0,111120.0,0.0245]
[1756825708184,1.26289653,111130.0,111120.0,0.0245]
[1756825708373,1.16289653,111130.0,111120.0,0.0245]
[1756825709569,0.09269,111130.0,111120.0,1.98902653]
[1756825709781,0.08269,111130.0,111120.0,2.47125822]
[1756825710173,0.08269,111130.0,111120.0,2.35902653]
[1756825711084,0.08269,111130.0,111120.0,2.81843306]
[1756825711279,0.08269,111130.0,111120.0,2.56243464]
[1756825711675,0.08269,111130.0,111120.0,2.90841836]
[1756825713276,0.0116689,111130.0,111120.0,4.70858182]
[1756825713882,0.0116689,111130.0,111120.0,4.86795588]
[1756825714878,0.01407,111150.0,111140.0,0.0899691]
[1756825714879,0.03744,111150.0,111140.0,0.0899691]
[1756825715085,0.01835528,111190.0,111150.0,0.10977359]
[1756825715280,0.01835528,111190.0,111180.0,0.82020653]
[1756825715483,0.01835528,111190.0,111180.0,2.07192653]
[1756825715684,0.01835528,111190.0,111180.0,2.15290616]
[1756825716489,0.01835528,111190.0,111180.0,2.07112653]
[1756825716786,0.01835528,111190.0,111180.0,2.18450828]
[1756825716986,0.01835528,111190.0,111180.0,1.72494175]
[1756825717182,0.01835528,111190.0,111180.0,2.18434828]
[1756825718283,0.01835528,111190.0,111180.0,1.18020653]
[1756825718488,0.01835528,111190.0,111180.0,2.07104653]
[1756825718787,0.01835528,111190.0,111180.0,1.61164]
[1756825718990,0.01835528,111190.0,111180.0,2.07104653]
[1756825719186,0.07933196,111210.0,111180.0,2.18438034]
[1756825719482,0.83805871,111220.0,111190.0,0.90115925]
[1756825719684,0.45940653,111200.0,111190.0,0.82624272]
[1756825719885,0.45940653,111200.0,111190.0,0.00449]
[1756825720085,1.41020653,111200.0,111190.0,0.00449]
[1756825720585,2.3226067,111200.0,111190.0,0.00449]
[1756825720786,1.55320017,111200.0,111190.0,0.00449]
[1756825720986,2.3426067,111200.0,111190.0,0.00449]
[1756825721191,2.32032653,111200.0,111190.0,0.00449]
[1756825721391,2.47002614,111200.0,111190.0,0.00449]
[1756825721590,2.35717581,111200.0,111190.0,0.00449]
[1756825722180,1.99717581,111200.0,111190.0,0.00449]
[1756825722489,2.11717581,111200.0,111190.0,0.00449]
[1756825722786,2.09913333,111200.0,111190.0,0.00449]
[1756825722985,2.34913333,111200.0,111190.0,0.00449]
[1756825723586,2.34913333,111200.0,111150.0,0.3608]
[1756825723889,0.45596273,111180.0,111160.0,0.3608]
[1756825724089,0.81676273,111190.0,111160.0,0.6808]
[1756825724280,0.3708,111190.0,111170.0,0.3608]
[1756825724486,0.3708,111190.0,111170.0,0.70529]
[1756825724681,0.01,111190.0,111170.0,0.70529]
[1756825725092,0.01,111190.0,111170.0,1.16125273]
[1756825725294,0.01,111190.0,111180.0,1.24884]
[1756825725491,0.01,111190.0,111180.0,1.56884]
[1756825725991,0.4617282,111210.0,111180.0,2.27480273]
[1756825726196,0.2309282,111210.0,111190.0,0.3608]
[1756825726397,0.2309282,111210.0,111190.0,0.6708]
[1756825729896,1.70312273,111250.0,111200.0,1.70312273]
[1756825730095,1.57938869,111250.0,111220.0,0.81676273]
[1756825730295,1.57938869,111250.0,111220.0,0.3608]
[1756825730600,2.04416232,111250.0,111220.0,0.6808]
[1756825730991,1.15780232,111250.0,111220.0,0.6808]
[1756825731186,1.13557363,111250.0,111220.0,0.6808]
[1756825731387,1.15768082,111250.0,111220.0,0.6808]
[1756825731588,0.3608,111240.0,111210.0,1.26657775]
[1756825731794,0.6608,111240.0,111210.0,0.69061775]
[1756825731993,0.6608,111240.0,111210.0,1.26693775]
[1756825733000,0.6608,111240.0,111210.0,0.38061775]
[1756825733299,0.4321773,111240.0,111220.0,0.3608]
[1756825733600,0.3696109,111250.0,111220.0,0.81676273]
[1756825733795,0.6796109,111250.0,111230.0,0.3608]
[1756825734101,0.3188109,111250.0,111230.0,0.3608]
[1756825734302,0.3188109,111250.0,111230.0,0.6908]
[1756825734600,0.3188109,111250.0,111230.0,0.3608]
[1756825734799,0.3188109,111250.0,111230.0,0.7408]
[1756825735001,0.0188109,111250.0,111230.0,1.70156273]
[1756825735201,1.8608,111260.0,111230.0,2.04156273]
[1756825735402,2.2208,111260.0,111230.0,2.07132273]
[1756825735698,2.2208,111260.0,111230.0,2.03132273]
[1756825736099,2.2208,111260.0,111240.0,0.3608]
[1756825736299,2.2208,111260.0,111240.0,0.7208]
[1756825736504,2.2208,111260.0,111240.0,0.3608]
[1756825737106,0.45596273,111250.0,111230.0,0.3608]
[1756825737302,0.53581778,111250.0,111230.0,0.3608]
[1756825737494,0.07127017,111250.0,111230.0,1.40676273]
[1756825737807,0.3608,111260.0,111240.0,0.3608]
[1756825738006,0.5008,111260.0,111240.0,0.7008]
[1756825738194,0.50932239,111260.0,111240.0,0.3608]
[1756825738399,0.50932239,111260.0,111240.0,1.24396]
[1756825738606,0.14852239,111260.0,111240.0,1.24396]
[1756825738994,0.14852239,111260.0,111240.0,1.12676273]
[1756825739199,1.87891907,111270.0,111250.0,0.3608]
[1756825739400,2.20891907,111270.0,111250.0,0.7108]
[1756825739696,1.99480273,111260.0,111210.0,0.11333381]
[1756825739896,0.45596273,111220.0,111200.0,0.3608]
[1756825740105,0.83502828,111230.0,111200.0,0.3608]
[1756825740402,0.38826555,111230.0,111210.0,0.3608]
[1756825740611,0.01826555,111230.0,111210.0,0.3608]
[1756825741201,0.01826555,111230.0,111210.0,0.36113]
[1756825741902,0.72906555,111230.0,111210.0,0.36113]
[1756825742109,0.73906555,111230.0,111210.0,0.00033]
[1756825742308,0.3608,111220.0,111210.0,0.00033]
[1756825742509,0.37906555,111230.0,111210.0,0.00033]
[1756825742907,0.37906555,111230.0,111210.0,0.36113]
[1756825743211,0.37906555,111230.0,111210.0,0.00033]
[1756825744508,0.01826555,111230.0,111220.0,0.3608]
[1756825744714,0.01826555,111230.0,111220.0,0.81676273]
[1756825745017,0.01826555,111230.0,111220.0,1.06676273]
[1756825745315,0.01826555,111230.0,111220.0,1.38676273]
[1756825745618,0.01826555,111230.0,111220.0,1.37676273]
[1756825746409,0.01826555,111230.0,111220.0,1.06676273]
[1756825746714,0.01826555,111230.0,111220.0,1.95056273]
[1756825747208,0.3608,111260.0,111220.0,2.27056273]
[1756825747406,0.08907449,111270.0,111250.0,1.17756273]
[1756825747607,0.08907449,111270.0,111250.0,1.70160273]
[1756825747906,0.08907449,111270.0,111250.0,0.3608]
[1756825748123,0.08907449,111270.0,111250.0,1.24564]
[1756825748316,0.08907449,111270.0,111260.0,0.3608]
[1756825749311,0.33907449,111270.0,111260.0,0.3608]
[1756825751314,0.3608,111300.0,111260.0,2.39043503]
[1756825751523,0.7308,111300.0,111280.0,0.3608]
[1756825751716,2.2308,111300.0,111280.0,0.3608]
[1756825751918,2.2308,111300.0,111270.0,0.81676273]
[1756825752218,2.68676273,111300.0,111270.0,1.24472]
[1756825752621,2.68676273,111300.0,111270.0,0.3608]
[1756825752920,2.69563555,111300.0,111270.0,1.24468]
[1756825753321,2.31216146,111300.0,111270.0,1.58468]
[1756825753622,2.31216146,111300.0,111280.0,0.3608]
[1756825753816,2.2308,111300.0,111280.0,1.13676273]
[1756825754124,1.5,111300.0,111290.0,0.81676273]
[1756825754425,1.5,111300.0,111290.0,1.24392]
[1756825754719,0.01836209,111320.0,111310.0,0.0898319]
[1756825754922,0.01836209,111320.0,111310.0,2.48043463]
[1756825755220,0.01836209,111320.0,111310.0,1.45756273]
[1756825755423,0.01836209,111320.0,111310.0,2.63116273]
[1756825755631,2.20816919,111320.0,111260.0,0.3608]
[1756825755820,0.45596273,111280.0,111260.0,0.4908]
[1756825756116,0.45596273,111270.0,111260.0,0.3608]
[1756825756620,0.0084968,111270.0,111260.0,0.3608]
[1756825756817,1.70092273,111300.0,111260.0,1.82496]
[1756825757013,2.06092273,111300.0,111270.0,0.3608]
[1756825757218,0.81676273,111290.0,111260.0,1.24496]
[1756825757417,0.37870504,111310.0,111280.0,0.3608]
[1756825757623,0.7222702,111310.0,111280.0,0.3608]
[1756825758014,0.3608,111290.0,111270.0,0.3608]
[1756825758217,0.81676273,111300.0,111280.0,0.3608]
[1756825758218,1.70120273,111300.0,111280.0,0.3608]
[1756825758819,1.77465449,111300.0,111280.0,0.3608]
[1756825759025,1.31869176,111300.0,111280.0,0.3608]
[1756825759221,0.43425176,111300.0,111280.0,0.3608]
[1756825759529,0.37870504,111310.0,111290.0,0.3608]
[1756825760020,0.37870504,111310.0,111280.0,1.70084273]
[1756825760222,0.37870504,111310.0,111290.0,0.3608]
[1756825760427,0.01790504,111310.0,111300.0,0.3608]
[1756825760816,0.83466777,111310.0,111280.0,1.26432953]
[1756825761227,0.37870504,111310.0,111280.0,1.26432953]
[1756825761822,0.3608,111300.0,111280.0,1.24452]
[1756825762414,0.81676273,111290.0,111270.0,0.88336]
[1756825762614,0.3608,111280.0,111260.0,0.3608]
[1756825762819,0.3608,111270.0,111250.0,0.3608]
[1756825763029,0.37908712,111280.0,111260.0,0.3608]
[1756825764120,0.37908712,111280.0,111250.0,0.3608]
[1756825764327,0.37908712,111280.0,111250.0,0.6808]
[1756825765129,0.83504985,111280.0,111260.0,0.3608]
[1756825765327,0.37908712,111280.0,111260.0,0.3608]
[1756825765829,0.01828712,111280.0,111260.0,0.3608]
[1756825766022,0.01828712,111280.0,111260.0,1.69880273]
[1756825766421,0.01828712,111280.0,111260.0,1.69912273]
[1756825766723,0.01828712,111280.0,111270.0,0.3608]
[1756825767618,0.0182824,111290.0,111270.0,0.3608]
[1756825767818,0.0182824,111290.0,111280.0,0.3608]
[1756825769727,0.0182824,111290.0,111280.0,1.95424273]
[1756825770628,0.0182824,111290.0,111280.0,2.33424273]
[1756825771428,0.0182824,111290.0,111280.0,0.3608]
[1756825771633,0.0182824,111290.0,111280.0,1.249]
[1756825771826,0.0182824,111290.0,111280.0,1.70496273]
[1756825772131,0.0182824,111290.0,111280.0,1.249]
[1756825772428,0.2682824,111290.0,111270.0,1.24892]